[Event "Titled Tuesday Blitz February 15 Early 2022"]
[White "Khoroshev, Nikita"]
[Black "Sargissyan, Sargis"]
[WhiteFideId "14200287"]
[BlackFideId "13303210"]
[WhiteElo "2354"]
[BlackElo "2174"]
[Result "1/2-1/2"]
[Round "01"]
[TimeControl "180+1"]
[Date "2022.02.15"]
[WhiteClock "0:01:02"]
[BlackClock "0:00:07"]

1. d4 {[%clk 0:02:59]}  Nf6 {[%clk 0:02:58]} 2. Nf3 {[%clk 0:02:58]}  g6 {[%clk 0:02:58]} 3. Bg5 {[%clk 0:02:58]}  Bg7 {[%clk 0:02:58]} 4. Nbd2 {[%clk 0:02:58]}  O-O {[%clk 0:02:56]} 5. e4 {[%clk 0:02:59]}  d5 {[%clk 0:02:56]} 6. e5 {[%clk 0:02:53]}  Ne4 {[%clk 0:02:56]} 7. Be3 {[%clk 0:02:51]}  c5 {[%clk 0:02:54]} 8. c3 {[%clk 0:02:51]}  Nc6 {[%clk 0:02:54]} 9. Be2 {[%clk 0:02:46]}  Bg4 {[%clk 0:02:22]} 10. O-O {[%clk 0:02:45]}  cxd4 {[%clk 0:02:04]} 11. cxd4 {[%clk 0:02:44]}  e6 {[%clk 0:01:56]} 12. h3 {[%clk 0:02:43]}  Nxd2 {[%clk 0:01:44]} 13. Qxd2 {[%clk 0:02:42]}  Bxf3 {[%clk 0:01:44]} 14. Bxf3 {[%clk 0:02:43]}  f6 {[%clk 0:01:44]} 15. exf6 {[%clk 0:02:43]}  Qxf6 {[%clk 0:01:44]} 16. Rad1 {[%clk 0:02:43]}  Rae8 {[%clk 0:01:34]} 17. b3 {[%clk 0:02:41]}  a6 {[%clk 0:01:09]} 18. Bg4 {[%clk 0:02:40]}  Kh8 {[%clk 0:01:05]} 19. f4 {[%clk 0:02:36]}  Ne7 {[%clk 0:01:02]} 20. Bf3 {[%clk 0:02:26]}  Nf5 {[%clk 0:01:02]} 21. Bf2 {[%clk 0:02:27]}  Nd6 {[%clk 0:00:58]} 22. g3 {[%clk 0:02:27]}  Nf5 {[%clk 0:00:44]} 23. Kg2 {[%clk 0:02:25]}  Rc8 {[%clk 0:00:43]} 24. Rfe1 {[%clk 0:02:21]}  Rc6 {[%clk 0:00:44]} 25. Re5 {[%clk 0:02:14]}  Rfc8 {[%clk 0:00:43]} 26. Qe1 {[%clk 0:02:13]}  Qf7 {[%clk 0:00:39]} 27. Rd2 {[%clk 0:02:10]}  Bxe5 {[%clk 0:00:37]} 28. Qxe5+ {[%clk 0:02:11]}  Qg7 {[%clk 0:00:36]} 29. Qe2 {[%clk 0:02:11]}  Qf6 {[%clk 0:00:32]} 30. h4 {[%clk 0:02:07]}  Rc1 {[%clk 0:00:30]} 31. Rd1 {[%clk 0:02:00]}  Rxd1 {[%clk 0:00:27]} 32. Qxd1 {[%clk 0:02:00]}  Rc6 {[%clk 0:00:18]} 33. Qd2 {[%clk 0:01:59]}  Qd8 {[%clk 0:00:17]} 34. Qe2 {[%clk 0:01:57]}  Qc7 {[%clk 0:00:17]} 35. g4 {[%clk 0:01:57]}  Ne7 {[%clk 0:00:15]} 36. Kg3 {[%clk 0:01:53]}  Kg7 {[%clk 0:00:15]} 37. Qe3 {[%clk 0:01:42]}  Kf7 {[%clk 0:00:16]} 38. Be1 {[%clk 0:01:41]}  Rc2 {[%clk 0:00:16]} 39. Bb4 {[%clk 0:01:40]}  Nc6 {[%clk 0:00:15]} 40. Bc5 {[%clk 0:01:37]}  b6 {[%clk 0:00:15]} 41. Ba3 {[%clk 0:01:36]}  Rxa2 {[%clk 0:00:15]} 42. Bc1 {[%clk 0:01:36]}  Rc2 {[%clk 0:00:15]} 43. Bd2 {[%clk 0:01:36]}  Ne7 {[%clk 0:00:14]} 44. Bd1 {[%clk 0:01:31]}  Rc6 {[%clk 0:00:14]} 45. Qd3 {[%clk 0:01:30]}  a5 {[%clk 0:00:14]} 46. h5 {[%clk 0:01:29]}  Qd6 {[%clk 0:00:11]} 47. Kf3 {[%clk 0:01:27]}  Qc7 {[%clk 0:00:11]} 48. Ke2 {[%clk 0:01:21]}  Rd6 {[%clk 0:00:11]} 49. Qh3 {[%clk 0:01:21]}  Kg7 {[%clk 0:00:10]} 50. Qh4 {[%clk 0:01:19]}  Nc6 {[%clk 0:00:10]} 51. Bc3 {[%clk 0:01:15]}  Nb4 {[%clk 0:00:10]} 52. Bb2 {[%clk 0:01:12]}  Rc6 {[%clk 0:00:10]} 53. h6+ {[%clk 0:01:10]}  Kf7 {[%clk 0:00:10]} 54. f5 {[%clk 0:01:10]}  Rc2+ {[%clk 0:00:10]} 55. Bxc2 {[%clk 0:01:06]}  Qxc2+ {[%clk 0:00:10]} 56. Kf3 {[%clk 0:01:06]}  Qxb3+ {[%clk 0:00:10]} 57. Kf4 {[%clk 0:01:05]}  Qxb2 {[%clk 0:00:10]} 58. fxg6+ {[%clk 0:01:04]}  Kxg6 {[%clk 0:00:10]} 59. Qh5+ {[%clk 0:01:03]}  Kf6 {[%clk 0:00:10]} 60. Qg5+ {[%clk 0:01:04]}  Kf7 {[%clk 0:00:10]} 61. Qg7+ {[%clk 0:01:04]}  Ke8 {[%clk 0:00:11]} 62. Ke5 {[%clk 0:01:04]}  Qe2+ {[%clk 0:00:07]} 63. Kd6 {[%clk 0:01:03]}  Qh2+ {[%clk 0:00:06]} 64. Kxe6 {[%clk 0:01:03]}  Qe2+ {[%clk 0:00:06]} 65. Kd6 {[%clk 0:01:03]}  Qh2+ {[%clk 0:00:06]} 66. Ke6 {[%clk 0:01:01]}  Qe2+ {[%clk 0:00:06]} 67. Kd6 {[%clk 0:01:02]}  Qh2+ {[%clk 0:00:07]} 68. Ke6 {[%clk 0:01:02]} 1/2-1/2


[Site "https://www.chess.com"]

[Event "Titled Tuesday Blitz February 15 Early 2022"]
[White "Khumalo, Keith"]
[Black "Van den Dikkenberg, Erik"]
[WhiteFideId "14319470"]
[BlackFideId "1005880"]
[WhiteElo "1992"]
[BlackElo "2118"]
[Result "1-0"]
[Round "01"]
[TimeControl "180+1"]
[Date "2022.02.15"]
[WhiteClock "0:02:31"]
[BlackClock "0:00:37"]

1. d4 {[%clk 0:03:00]}  Nf6 {[%clk 0:02:59]} 2. c4 {[%clk 0:02:59]}  g6 {[%clk 0:02:58]} 3. Nc3 {[%clk 0:02:57]}  Bg7 {[%clk 0:02:58]} 4. e4 {[%clk 0:02:55]}  d6 {[%clk 0:02:59]} 5. Bd3 {[%clk 0:02:56]}  O-O {[%clk 0:02:58]} 6. Nge2 {[%clk 0:02:57]}  c5 {[%clk 0:02:57]} 7. d5 {[%clk 0:02:56]}  Nbd7 {[%clk 0:02:46]} 8. O-O {[%clk 0:02:54]}  Ng4 {[%clk 0:02:44]} 9. b3 {[%clk 0:02:50]}  Nge5 {[%clk 0:02:32]} 10. Bc2 {[%clk 0:02:49]}  f5 {[%clk 0:02:25]} 11. f4 {[%clk 0:02:43]}  Ng4 {[%clk 0:02:24]} 12. h3 {[%clk 0:02:43]}  Nh6 {[%clk 0:02:17]} 13. Rb1 {[%clk 0:02:42]}  fxe4 {[%clk 0:02:13]} 14. Nxe4 {[%clk 0:02:43]}  Nf6 {[%clk 0:02:12]} 15. Ng5 {[%clk 0:02:41]}  Bf5 {[%clk 0:02:06]} 16. Bb2 {[%clk 0:02:36]}  Qd7 {[%clk 0:02:01]} 17. Ng3 {[%clk 0:02:32]}  Bxc2 {[%clk 0:01:59]} 18. Qxc2 {[%clk 0:02:33]}  Nf5 {[%clk 0:01:49]} 19. Nxf5 {[%clk 0:02:31]}  Qxf5 {[%clk 0:01:42]} 20. Qxf5 {[%clk 0:02:32]}  gxf5 {[%clk 0:01:42]} 21. Rbe1 {[%clk 0:02:32]}  Ne4 {[%clk 0:01:29]} 22. Bxg7 {[%clk 0:02:31]}  Kxg7 {[%clk 0:01:28]} 23. Nxe4 {[%clk 0:02:31]}  fxe4 {[%clk 0:01:28]} 24. Rxe4 {[%clk 0:02:32]}  Kf6 {[%clk 0:01:26]} 25. Re6+ {[%clk 0:02:31]}  Kf7 {[%clk 0:01:25]} 26. Rfe1 {[%clk 0:02:31]}  Rae8 {[%clk 0:01:19]} 27. g4 {[%clk 0:02:31]}  a6 {[%clk 0:01:17]} 28. a4 {[%clk 0:02:31]}  Rg8 {[%clk 0:01:14]} 29. Kg2 {[%clk 0:02:30]}  h5 {[%clk 0:01:13]} 30. Kg3 {[%clk 0:02:31]}  hxg4 {[%clk 0:01:07]} 31. hxg4 {[%clk 0:02:32]}  Rh8 {[%clk 0:01:06]} 32. f5 {[%clk 0:02:32]}  Rhg8 {[%clk 0:00:48]} 33. Kf4 {[%clk 0:02:29]}  Rh8 {[%clk 0:00:48]} 34. g5 {[%clk 0:02:29]}  Rh4+ {[%clk 0:00:47]} 35. Kg3 {[%clk 0:02:30]}  Rd4 {[%clk 0:00:47]} 36. g6+ {[%clk 0:02:29]}  Kg7 {[%clk 0:00:44]} 37. Rxe7+ {[%clk 0:02:29]}  Rxe7 {[%clk 0:00:40]} 38. Rxe7+ {[%clk 0:02:30]}  Kf6 {[%clk 0:00:41]} 39. Rf7+ {[%clk 0:02:30]}  Kg5 {[%clk 0:00:41]} 40. g7 {[%clk 0:02:31]}  Rd3+ {[%clk 0:00:41]} 41. Kf2 {[%clk 0:02:31]}  Rd2+ {[%clk 0:00:37]} 42. Ke3 {[%clk 0:02:31]} 1-0


[Site "https://www.chess.com"]

[Event "Titled Tuesday Blitz February 15 Early 2022"]
[White "Kiolbasa, Oliwia"]
[Black "Tari, Aryan"]
[WhiteFideId "1154613"]
[BlackFideId "1510045"]
[WhiteElo "2190"]
[BlackElo "2567"]
[Result "0-1"]
[Round "01"]
[TimeControl "180+1"]
[Date "2022.02.15"]
[WhiteClock "0:00:23"]
[BlackClock "0:01:29"]

1. e4 {[%clk 0:03:00]}  e5 {[%clk 0:02:54]} 2. Nf3 {[%clk 0:02:59]}  Nc6 {[%clk 0:02:53]} 3. Bb5 {[%clk 0:02:59]}  a6 {[%clk 0:02:53]} 4. Ba4 {[%clk 0:02:59]}  Bc5 {[%clk 0:02:53]} 5. O-O {[%clk 0:02:47]}  Nge7 {[%clk 0:02:43]} 6. c3 {[%clk 0:02:42]}  Ba7 {[%clk 0:02:44]} 7. d4 {[%clk 0:02:30]}  Ng6 {[%clk 0:02:43]} 8. Bg5 {[%clk 0:02:00]}  f6 {[%clk 0:02:42]} 9. Be3 {[%clk 0:02:00]}  O-O {[%clk 0:02:41]} 10. Nbd2 {[%clk 0:01:50]}  d6 {[%clk 0:02:40]} 11. h3 {[%clk 0:01:49]}  Kh8 {[%clk 0:02:38]} 12. Re1 {[%clk 0:01:36]}  exd4 {[%clk 0:02:33]} 13. cxd4 {[%clk 0:01:36]}  f5 {[%clk 0:02:33]} 14. d5 {[%clk 0:01:10]}  Bxe3 {[%clk 0:02:23]} 15. Rxe3 {[%clk 0:01:08]}  f4 {[%clk 0:02:17]} 16. Rc3 {[%clk 0:01:05]}  Nce5 {[%clk 0:02:16]} 17. Rac1 {[%clk 0:01:02]}  Rf7 {[%clk 0:02:16]} 18. Nd4 {[%clk 0:00:59]}  Qg5 {[%clk 0:02:07]} 19. N2f3 {[%clk 0:00:56]}  Qd8 {[%clk 0:02:02]} 20. Ne6 {[%clk 0:00:36]}  Bxe6 {[%clk 0:02:00]} 21. dxe6 {[%clk 0:00:37]}  Re7 {[%clk 0:02:00]} 22. Ng5 {[%clk 0:00:37]}  c6 {[%clk 0:01:41]} 23. Qh5 {[%clk 0:00:33]}  h6 {[%clk 0:01:41]} 24. Rd1 {[%clk 0:00:25]}  Rc7 {[%clk 0:01:29]} 25. Bb3 {[%clk 0:00:23]}  Qxg5 {[%clk 0:01:29]} 0-1


[Site "https://www.chess.com"]

[Event "Titled Tuesday Blitz February 15 Early 2022"]
[White "Kobalia, Mikhail"]
[Black "Al Mukhaini, Shima"]
[WhiteFideId "4119150"]
[BlackFideId "22005854"]
[WhiteElo "2667"]
[BlackElo "2404"]
[Result "1-0"]
[Round "01"]
[TimeControl "180+1"]
[Date "2022.02.15"]
[WhiteClock "0:01:15"]
[BlackClock "0:00:07"]

1. e4 {[%clk 0:03:00]}  c5 {[%clk 0:02:57]} 2. Nf3 {[%clk 0:03:00]}  d6 {[%clk 0:02:57]} 3. Bb5+ {[%clk 0:02:59]}  Bd7 {[%clk 0:02:56]} 4. Bxd7+ {[%clk 0:02:58]}  Nxd7 {[%clk 0:02:57]} 5. O-O {[%clk 0:02:58]}  Ngf6 {[%clk 0:02:57]} 6. Qe2 {[%clk 0:02:57]}  e6 {[%clk 0:02:56]} 7. c3 {[%clk 0:02:57]}  Be7 {[%clk 0:02:54]} 8. d4 {[%clk 0:02:57]}  O-O {[%clk 0:02:54]} 9. Rd1 {[%clk 0:02:54]}  cxd4 {[%clk 0:02:53]} 10. cxd4 {[%clk 0:02:53]}  a6 {[%clk 0:02:50]} 11. Nc3 {[%clk 0:02:52]}  b5 {[%clk 0:02:50]} 12. e5 {[%clk 0:02:50]}  Ne8 {[%clk 0:02:48]} 13. Ne4 {[%clk 0:02:47]}  Nb6 {[%clk 0:02:36]} 14. Bf4 {[%clk 0:02:41]}  Nd5 {[%clk 0:02:35]} 15. Bg3 {[%clk 0:02:41]}  dxe5 {[%clk 0:02:22]} 16. dxe5 {[%clk 0:02:40]}  Nec7 {[%clk 0:02:22]} 17. Nd6 {[%clk 0:02:38]}  Qb8 {[%clk 0:02:19]} 18. Rac1 {[%clk 0:02:36]}  Qb6 {[%clk 0:02:02]} 19. Nd4 {[%clk 0:02:35]}  Bxd6 {[%clk 0:01:58]} 20. exd6 {[%clk 0:02:34]}  Ne8 {[%clk 0:01:59]} 21. Nc6 {[%clk 0:02:28]}  Nef6 {[%clk 0:01:54]} 22. Bh4 {[%clk 0:02:16]}  Kh8 {[%clk 0:01:42]} 23. Bxf6 {[%clk 0:02:12]}  Nxf6 {[%clk 0:01:41]} 24. d7 {[%clk 0:02:11]}  Nd5 {[%clk 0:01:32]} 25. Qe5 {[%clk 0:02:06]}  h6 {[%clk 0:01:05]} 26. h3 {[%clk 0:02:05]}  Kg8 {[%clk 0:01:00]} 27. Rxd5 {[%clk 0:02:00]}  exd5 {[%clk 0:01:00]} 28. Qxd5 {[%clk 0:01:59]}  Kh8 {[%clk 0:00:47]} 29. Re1 {[%clk 0:01:55]}  Qc7 {[%clk 0:00:41]} 30. g3 {[%clk 0:01:42]}  Kg8 {[%clk 0:00:32]} 31. Re7 {[%clk 0:01:38]}  Rad8 {[%clk 0:00:26]} 32. Nxd8 {[%clk 0:01:36]}  Qxd8 {[%clk 0:00:25]} 33. Qd6 {[%clk 0:01:34]}  a5 {[%clk 0:00:19]} 34. b3 {[%clk 0:01:29]}  b4 {[%clk 0:00:19]} 35. h4 {[%clk 0:01:29]}  g6 {[%clk 0:00:15]} 36. Qf6 {[%clk 0:01:21]}  Qc7 {[%clk 0:00:11]} 37. Rxf7 {[%clk 0:01:16]}  Rxf7 {[%clk 0:00:08]} 38. d8=Q+ {[%clk 0:01:15]}  Qxd8 {[%clk 0:00:07]} 39. Qxd8+ {[%clk 0:01:15]} 1-0


[Site "https://www.chess.com"]

[Event "Titled Tuesday Blitz February 15 Early 2022"]
[White "Komissarov, Alexey"]
[Black "Musovic, Armin"]
[WhiteFideId "4176545"]
[BlackFideId "939935"]
[WhiteElo "2216"]
[BlackElo "2250"]
[Result "0-1"]
[Round "01"]
[TimeControl "180+1"]
[Date "2022.02.15"]
[WhiteClock "0:01:17"]
[BlackClock "0:01:57"]

1. e4 {[%clk 0:02:58]}  c6 {[%clk 0:02:58]} 2. d4 {[%clk 0:02:57]}  d5 {[%clk 0:02:59]} 3. exd5 {[%clk 0:02:58]}  cxd5 {[%clk 0:02:59]} 4. Nf3 {[%clk 0:02:57]}  Nc6 {[%clk 0:03:00]} 5. Ne5 {[%clk 0:02:56]}  a6 {[%clk 0:03:00]} 6. c4 {[%clk 0:02:52]}  Nf6 {[%clk 0:02:59]} 7. Nc3 {[%clk 0:02:44]}  g6 {[%clk 0:02:55]} 8. cxd5 {[%clk 0:02:33]}  Nxd5 {[%clk 0:02:55]} 9. Qf3 {[%clk 0:02:22]}  Be6 {[%clk 0:02:44]} 10. Nxc6 {[%clk 0:02:08]}  bxc6 {[%clk 0:02:43]} 11. Bc4 {[%clk 0:02:07]}  Bg7 {[%clk 0:02:37]} 12. O-O {[%clk 0:01:55]}  O-O {[%clk 0:02:37]} 13. Rd1 {[%clk 0:01:42]}  a5 {[%clk 0:02:19]} 14. Ne4 {[%clk 0:01:36]}  Nc7 {[%clk 0:02:07]} 15. Bxe6 {[%clk 0:01:18]}  Nxe6 {[%clk 0:02:08]} 16. d5 {[%clk 0:01:16]}  cxd5 {[%clk 0:02:05]} 17. Rxd5 {[%clk 0:01:17]}  Nd4 {[%clk 0:01:57]} 0-1


[Site "https://www.chess.com"]

[Event "Titled Tuesday Blitz February 15 Early 2022"]
[White "Kornyukov, Alexey"]
[Black "Postnikov, Daniil"]
[WhiteFideId "4150457"]
[BlackFideId "4166329"]
[WhiteElo "2303"]
[BlackElo "2261"]
[Result "0-1"]
[Round "01"]
[TimeControl "180+1"]
[Date "2022.02.15"]
[WhiteClock "0:01:26"]
[BlackClock "0:02:09"]

1. e4 {[%clk 0:01:58]}  e6 {[%clk 0:02:57]} 2. d4 {[%clk 0:01:57]}  d5 {[%clk 0:02:58]} 3. Nc3 {[%clk 0:01:56]}  Nf6 {[%clk 0:02:50]} 4. Bg5 {[%clk 0:01:55]}  Bb4 {[%clk 0:02:50]} 5. e5 {[%clk 0:01:55]}  h6 {[%clk 0:02:50]} 6. exf6 {[%clk 0:01:52]}  hxg5 {[%clk 0:02:49]} 7. fxg7 {[%clk 0:01:51]}  Rg8 {[%clk 0:02:50]} 8. Qh5 {[%clk 0:01:47]}  Qf6 {[%clk 0:02:50]} 9. Nf3 {[%clk 0:01:37]}  Qxg7 {[%clk 0:02:26]} 10. Bb5+ {[%clk 0:01:36]}  Bd7 {[%clk 0:02:23]} 11. Bxd7+ {[%clk 0:01:36]}  Nxd7 {[%clk 0:02:24]} 12. a3 {[%clk 0:01:32]}  Bxc3+ {[%clk 0:02:24]} 13. bxc3 {[%clk 0:01:30]}  g4 {[%clk 0:02:11]} 14. Nd2 {[%clk 0:01:26]}  Rh8 {[%clk 0:02:09]} 0-1


[Site "https://www.chess.com"]

[Event "Titled Tuesday Blitz February 15 Early 2022"]
[White "Kovanova, Baira"]
[Black "Fedoseev, Vladimir"]
[WhiteFideId "4164083"]
[BlackFideId "24130737"]
[WhiteElo "2190"]
[BlackElo "2726"]
[Result "0-1"]
[Round "01"]
[TimeControl "180+1"]
[Date "2022.02.15"]
[WhiteClock "0:00:06"]
[BlackClock "0:00:31"]

1. e4 {[%clk 0:02:59]}  c6 {[%clk 0:02:32]} 2. Nf3 {[%clk 0:02:56]}  d5 {[%clk 0:02:26]} 3. d3 {[%clk 0:02:55]}  dxe4 {[%clk 0:02:23]} 4. dxe4 {[%clk 0:02:55]}  Qxd1+ {[%clk 0:02:24]} 5. Kxd1 {[%clk 0:02:55]}  Nd7 {[%clk 0:02:18]} 6. Ne1 {[%clk 0:02:46]}  Nc5 {[%clk 0:02:14]} 7. f3 {[%clk 0:02:44]}  e5 {[%clk 0:02:08]} 8. Be3 {[%clk 0:02:25]}  Be6 {[%clk 0:01:54]} 9. c3 {[%clk 0:02:09]}  f5 {[%clk 0:01:47]} 10. b4 {[%clk 0:02:03]}  Na4 {[%clk 0:01:42]} 11. Kc2 {[%clk 0:01:53]}  fxe4 {[%clk 0:01:42]} 12. fxe4 {[%clk 0:01:52]}  Nf6 {[%clk 0:01:43]} 13. Nd2 {[%clk 0:01:41]}  a5 {[%clk 0:01:44]} 14. a3 {[%clk 0:01:34]}  Nxc3 {[%clk 0:01:40]} 15. Kxc3 {[%clk 0:01:17]}  axb4+ {[%clk 0:01:41]} 16. Kc2 {[%clk 0:01:17]}  b5 {[%clk 0:01:40]} 17. Nd3 {[%clk 0:01:11]}  Nd7 {[%clk 0:01:19]} 18. Be2 {[%clk 0:00:56]}  bxa3 {[%clk 0:01:17]} 19. Nb3 {[%clk 0:00:43]}  c5 {[%clk 0:00:45]} 20. Ndxc5 {[%clk 0:00:31]}  Nxc5 {[%clk 0:00:42]} 21. Nxc5 {[%clk 0:00:18]}  Bxc5 {[%clk 0:00:42]} 22. Bxb5+ {[%clk 0:00:17]}  Kf7 {[%clk 0:00:41]} 23. Rhf1+ {[%clk 0:00:15]}  Kg6 {[%clk 0:00:40]} 24. Bxc5 {[%clk 0:00:15]}  Rhc8 {[%clk 0:00:40]} 25. Kd2 {[%clk 0:00:13]}  Rxc5 {[%clk 0:00:39]} 26. Bd3 {[%clk 0:00:12]}  a2 {[%clk 0:00:39]} 27. Rfc1 {[%clk 0:00:09]}  Rxc1 {[%clk 0:00:38]} 28. Kxc1 {[%clk 0:00:09]}  Kg5 {[%clk 0:00:38]} 29. Kb2 {[%clk 0:00:07]}  Kf4 {[%clk 0:00:38]} 30. Re1 {[%clk 0:00:07]}  Rd8 {[%clk 0:00:34]} 31. Bc2 {[%clk 0:00:06]}  Rd2 {[%clk 0:00:33]} 32. g3+ {[%clk 0:00:06]}  Kg4 {[%clk 0:00:32]} 33. Kc3 {[%clk 0:00:06]}  Rxh2 {[%clk 0:00:32]} 34. Bb3 {[%clk 0:00:06]}  Bxb3 {[%clk 0:00:31]} 35. Kxb3 {[%clk 0:00:06]}  Kxg3 {[%clk 0:00:31]} 36. Rg1+ {[%clk 0:00:06]}  Kf4 {[%clk 0:00:31]} 0-1


[Site "https://www.chess.com"]

[Event "Titled Tuesday Blitz February 15 Early 2022"]
[White "Kozlov, Gennady"]
[Black "Eggleston, Thomas A"]
[WhiteFideId "4191668"]
[BlackFideId "412139"]
[WhiteElo "2392"]
[BlackElo "2174"]
[Result "1-0"]
[Round "01"]
[TimeControl "180+1"]
[Date "2022.02.15"]
[WhiteClock "0:01:33"]
[BlackClock "0:00:03"]

1. d4 {[%clk 0:02:56]}  e6 {[%clk 0:02:59]} 2. c4 {[%clk 0:02:55]}  f5 {[%clk 0:03:00]} 3. Nf3 {[%clk 0:02:55]}  Nf6 {[%clk 0:03:00]} 4. g3 {[%clk 0:02:55]}  Be7 {[%clk 0:03:00]} 5. Bg2 {[%clk 0:02:56]}  O-O {[%clk 0:03:00]} 6. O-O {[%clk 0:02:56]}  d6 {[%clk 0:03:00]} 7. Nc3 {[%clk 0:02:57]}  Ne4 {[%clk 0:03:00]} 8. Qc2 {[%clk 0:02:56]}  Nxc3 {[%clk 0:03:00]} 9. bxc3 {[%clk 0:02:57]}  Nc6 {[%clk 0:02:59]} 10. Ba3 {[%clk 0:02:54]}  e5 {[%clk 0:02:48]} 11. Rab1 {[%clk 0:02:50]}  f4 {[%clk 0:02:43]} 12. dxe5 {[%clk 0:02:48]}  dxe5 {[%clk 0:02:34]} 13. Bxe7 {[%clk 0:02:47]}  Qxe7 {[%clk 0:02:34]} 14. e4 {[%clk 0:02:48]}  g5 {[%clk 0:02:29]} 15. Rb5 {[%clk 0:02:43]}  g4 {[%clk 0:02:28]} 16. Nh4 {[%clk 0:02:43]}  f3 {[%clk 0:02:27]} 17. Bh1 {[%clk 0:02:43]}  Be6 {[%clk 0:02:20]} 18. Qd2 {[%clk 0:02:35]}  Bxc4 {[%clk 0:02:14]} 19. Rbb1 {[%clk 0:02:35]}  Bxf1 {[%clk 0:02:14]} 20. Rxf1 {[%clk 0:02:36]}  Qf6 {[%clk 0:02:08]} 21. h3 {[%clk 0:02:35]}  h5 {[%clk 0:02:07]} 22. Nf5 {[%clk 0:02:34]}  Rad8 {[%clk 0:01:55]} 23. Qe3 {[%clk 0:02:33]}  Ne7 {[%clk 0:01:51]} 24. hxg4 {[%clk 0:02:32]}  hxg4 {[%clk 0:01:30]} 25. Nh6+ {[%clk 0:02:31]}  Kg7 {[%clk 0:01:29]} 26. Nxg4 {[%clk 0:02:30]}  Qg6 {[%clk 0:01:17]} 27. Bxf3 {[%clk 0:02:28]}  Rh8 {[%clk 0:01:12]} 28. Nxe5 {[%clk 0:02:26]}  Qh7 {[%clk 0:01:10]} 29. Qg5+ {[%clk 0:02:25]}  Kf8 {[%clk 0:01:10]} 30. Re1 {[%clk 0:02:13]}  Qg7 {[%clk 0:00:51]} 31. Qf4+ {[%clk 0:02:10]}  Ke8 {[%clk 0:00:51]} 32. Ng4 {[%clk 0:02:09]}  Ng6 {[%clk 0:00:45]} 33. Qf5 {[%clk 0:02:04]}  Ne7 {[%clk 0:00:39]} 34. Qe6 {[%clk 0:02:01]}  Rd6 {[%clk 0:00:35]} 35. Qc4 {[%clk 0:01:59]}  Kd8 {[%clk 0:00:33]} 36. e5 {[%clk 0:01:58]}  Rb6 {[%clk 0:00:32]} 37. Rd1+ {[%clk 0:01:46]}  Kc8 {[%clk 0:00:32]} 38. Qd4 {[%clk 0:01:46]}  Kb8 {[%clk 0:00:28]} 39. Nf6 {[%clk 0:01:45]}  Rb2 {[%clk 0:00:13]} 40. Qd8+ {[%clk 0:01:43]}  Rxd8 {[%clk 0:00:12]} 41. Rxd8+ {[%clk 0:01:43]}  Nc8 {[%clk 0:00:12]} 42. Nd7+ {[%clk 0:01:33]}  Qxd7 {[%clk 0:00:11]} 43. Rxd7 {[%clk 0:01:34]}  Rxa2 {[%clk 0:00:09]} 44. Rd8 {[%clk 0:01:34]}  Ra1+ {[%clk 0:00:05]} 45. Kg2 {[%clk 0:01:33]}  a5 {[%clk 0:00:02]} 46. Bg4 {[%clk 0:01:32]}  Ka7 {[%clk 0:00:03]} 47. Rxc8 {[%clk 0:01:32]}  a4 {[%clk 0:00:03]} 48. e6 {[%clk 0:01:33]}  a3 {[%clk 0:00:04]} 49. e7 {[%clk 0:01:32]}  Re1 {[%clk 0:00:04]} 50. e8=Q {[%clk 0:01:32]}  Rxe8 {[%clk 0:00:02]} 51. Rxe8 {[%clk 0:01:33]}  a2 {[%clk 0:00:03]} 52. Re1 {[%clk 0:01:33]} 1-0


[Site "https://www.chess.com"]

[Event "Titled Tuesday Blitz February 15 Early 2022"]
[White "Krylov, Ivan"]
[Black "Papasimakopoulos, Alexandros"]
[WhiteFideId "24128066"]
[BlackFideId "4244125"]
[WhiteElo "2258"]
[BlackElo "2340"]
[Result "0-1"]
[Round "01"]
[TimeControl "180+1"]
[Date "2022.02.15"]
[WhiteClock "0:00:19"]
[BlackClock "0:00:15"]

1. e4 {[%clk 0:03:00]}  e6 {[%clk 0:02:47]} 2. d4 {[%clk 0:03:00]}  d5 {[%clk 0:02:39]} 3. Nc3 {[%clk 0:02:59]}  Bb4 {[%clk 0:02:34]} 4. Bd3 {[%clk 0:02:58]}  dxe4 {[%clk 0:02:31]} 5. Bxe4 {[%clk 0:02:58]}  Nf6 {[%clk 0:02:32]} 6. Bf3 {[%clk 0:02:57]}  Nc6 {[%clk 0:02:32]} 7. Ne2 {[%clk 0:02:51]}  e5 {[%clk 0:02:32]} 8. Bxc6+ {[%clk 0:02:41]}  bxc6 {[%clk 0:02:33]} 9. O-O {[%clk 0:02:39]}  e4 {[%clk 0:02:10]} 10. Bg5 {[%clk 0:02:30]}  Bxc3 {[%clk 0:01:54]} 11. Nxc3 {[%clk 0:02:28]}  Bf5 {[%clk 0:01:55]} 12. Re1 {[%clk 0:02:18]}  O-O {[%clk 0:01:53]} 13. Bxf6 {[%clk 0:02:09]}  Qxf6 {[%clk 0:01:53]} 14. Nxe4 {[%clk 0:02:07]}  Qg6 {[%clk 0:01:53]} 15. f3 {[%clk 0:01:49]}  Rfe8 {[%clk 0:01:41]} 16. Rc1 {[%clk 0:01:17]}  Bxe4 {[%clk 0:01:37]} 17. fxe4 {[%clk 0:01:17]}  Rxe4 {[%clk 0:01:38]} 18. Rxe4 {[%clk 0:01:06]}  Qxe4 {[%clk 0:01:37]} 19. Qd3 {[%clk 0:01:02]}  Qe6 {[%clk 0:01:31]} 20. a3 {[%clk 0:00:57]}  Rd8 {[%clk 0:01:26]} 21. Rd1 {[%clk 0:00:57]}  g6 {[%clk 0:01:23]} 22. c3 {[%clk 0:00:56]}  Re8 {[%clk 0:01:23]} 23. Qf3 {[%clk 0:00:54]}  Qe2 {[%clk 0:01:20]} 24. Rf1 {[%clk 0:00:51]}  Qxf3 {[%clk 0:01:19]} 25. Rxf3 {[%clk 0:00:52]}  a5 {[%clk 0:01:12]} 26. Kf2 {[%clk 0:00:52]}  a4 {[%clk 0:01:07]} 27. Kg3 {[%clk 0:00:51]}  f5 {[%clk 0:01:06]} 28. Kf4 {[%clk 0:00:50]}  Re4+ {[%clk 0:01:05]} 29. Kg3 {[%clk 0:00:47]}  Re8 {[%clk 0:01:01]} 30. Rd3 {[%clk 0:00:45]}  Rb8 {[%clk 0:00:59]} 31. Rd2 {[%clk 0:00:44]}  Kf7 {[%clk 0:00:59]} 32. Kf3 {[%clk 0:00:44]}  Ke6 {[%clk 0:00:59]} 33. h3 {[%clk 0:00:44]}  Kd5 {[%clk 0:00:52]} 34. Re2 {[%clk 0:00:41]}  c5 {[%clk 0:00:42]} 35. dxc5 {[%clk 0:00:39]}  Kxc5 {[%clk 0:00:40]} 36. Re7 {[%clk 0:00:40]}  c6 {[%clk 0:00:33]} 37. Ra7 {[%clk 0:00:39]}  Rxb2 {[%clk 0:00:32]} 38. Rxa4 {[%clk 0:00:39]}  Rb3 {[%clk 0:00:31]} 39. Ra7 {[%clk 0:00:36]}  Rxc3+ {[%clk 0:00:26]} 40. Kf4 {[%clk 0:00:36]}  h6 {[%clk 0:00:25]} 41. h4 {[%clk 0:00:32]}  Rc4+ {[%clk 0:00:24]} 42. Kg3 {[%clk 0:00:33]}  Rg4+ {[%clk 0:00:23]} 43. Kh3 {[%clk 0:00:32]}  Kb6 {[%clk 0:00:22]} 44. Ra8 {[%clk 0:00:32]}  c5 {[%clk 0:00:22]} 45. a4 {[%clk 0:00:31]}  Kb7 {[%clk 0:00:20]} 46. Ra5 {[%clk 0:00:30]}  Kb6 {[%clk 0:00:20]} 47. Rb5+ {[%clk 0:00:29]}  Kc6 {[%clk 0:00:20]} 48. Ra5 {[%clk 0:00:29]}  c4 {[%clk 0:00:20]} 49. Ra8 {[%clk 0:00:28]}  Kb7 {[%clk 0:00:20]} 50. Ra5 {[%clk 0:00:28]}  Kb6 {[%clk 0:00:21]} 51. Ra8 {[%clk 0:00:28]}  Rd4 {[%clk 0:00:19]} 52. Kg3 {[%clk 0:00:25]}  Rd5 {[%clk 0:00:13]} 53. Rg8 {[%clk 0:00:22]}  Rd6 {[%clk 0:00:12]} 54. Ra8 {[%clk 0:00:21]}  Rc6 {[%clk 0:00:12]} 55. a5+ {[%clk 0:00:21]}  Kb7 {[%clk 0:00:12]} 56. Re8 {[%clk 0:00:19]}  c3 {[%clk 0:00:12]} 57. Re1 {[%clk 0:00:20]}  Ka6 {[%clk 0:00:13]} 58. Rc1 {[%clk 0:00:19]}  Kxa5 {[%clk 0:00:13]} 59. Kf3 {[%clk 0:00:20]}  Kb4 {[%clk 0:00:14]} 60. Ke3 {[%clk 0:00:20]}  Kb3 {[%clk 0:00:14]} 61. Kd3 {[%clk 0:00:20]}  Rd6+ {[%clk 0:00:15]} 62. Ke2 {[%clk 0:00:20]}  c2 {[%clk 0:00:15]} 63. Kf3 {[%clk 0:00:18]}  Kb2 {[%clk 0:00:15]} 64. Re1 {[%clk 0:00:19]}  c1=Q {[%clk 0:00:15]} 0-1


[Site "https://www.chess.com"]